bitfinex-derivatives/quotes_ETHF0:USTF0_20250224
["timestamp","ask_amount","ask_price","bid_price","bid_amount"]
[1740371838387,3.2078,2702.0,2701.5,7.80113733]
[1740371838696,3.2078,2702.0,2701.8,0.74022]
[1740371838995,3.2078,2702.0,2701.5,4.87135376]
[1740371839295,3.2078,2702.0,2701.7,0.74024]
[1740371839494,3.2078,2702.0,2701.6,0.00555782]
[1740371839794,3.94799,2702.0,2701.7,2.954]
[1740371839983,3.2078,2702.0,2701.7,2.954]
[1740371840188,3.2078,2702.0,2701.8,0.74023]
[1740371840392,3.2078,2702.0,2701.7,2.954]
[1740371840393,3.2078,2702.0,2701.9,0.7402]
[1740371840887,0.00555782,2702.2,2702.1,0.74015]
[1740371841190,0.00555782,2702.2,2701.9,3.6942]
[1740371841391,0.00555782,2702.2,2702.1,0.74015]
[1740371841689,0.74015,2702.1,2702.0,4.74636918]
[1740371841889,0.00555782,2702.2,2701.9,2.954]
[1740371841890,0.74017,2702.0,2701.9,2.954]
[1740371842082,3.94797,2702.0,2701.9,2.954]
[1740371842282,0.74025,2701.7,2701.6,0.00555782]
[1740371842485,3.2078,2701.7,2700.4,0.9928]
[1740371842690,3.2078,2701.4,2701.0,0.74044]
[1740371842890,3.2078,2701.1,2700.5,40.8]
[1740371843086,3.156,2701.0,2700.1,4.94457]
[1740371843283,3.2078,2700.5,2699.6,0.9928]
[1740371843488,3.156,2701.0,2699.8,40.8]
[1740371843489,3.2078,2700.2,2699.8,40.8]
[1740371843693,3.2078,2700.2,2699.9,0.74074]
[1740371843994,3.2078,2700.2,2699.8,2.95955782]
[1740371844297,3.94848,2700.2,2699.8,2.95955782]
[1740371844486,3.2078,2700.2,2699.8,2.95955782]
[1740371844687,3.2078,2700.2,2700.1,0.74069]
[1740371845189,0.00555782,2700.4,2700.1,0.74069]
[1740371845190,0.00555782,2700.4,2700.3,0.74064]
[1740371846394,3.2078,2701.5,2701.4,0.74034]
[1740371846586,3.2078,2701.5,2700.3,51.56146226]
[1740371846587,3.2078,2701.5,2700.9,3.2078]
[1740371846795,3.2078,2701.5,2701.4,0.74034]
[1740371846988,3.2078,2702.1,2701.2,6.3508]
[1740371847189,3.94795,2702.1,2701.7,0.74024]
[1740371847492,3.2078,2702.1,2701.6,0.00555782]
[1740371848088,3.2078,2702.1,2701.9,0.74018]
[1740371848288,3.2078,2702.1,2701.6,0.00555782]
[1740371848693,3.2078,2702.1,2702.0,0.74017]
[1740371849092,0.00555782,2702.2,2702.1,0.74015]
[1740371849589,0.00555782,2702.2,2702.1,3.94795]
[1740371849784,0.00555782,2702.2,2702.1,15.07591052]
[1740371850084,0.989,2703.1,2702.8,0.73993]
[1740371850489,4.1968,2703.1,2702.3,3.129]
[1740371850696,0.989,2703.1,2702.4,3.2078]
[1740371850898,0.9856,2703.3,2703.1,0.73985]
[1740371851096,3.2078,2703.4,2703.3,0.73982]
[1740371851289,3.2078,2703.4,2703.1,0.73986]
[1740371851487,3.2078,2703.4,2703.2,0.73984]
[1740371851891,3.2078,2703.4,2703.0,0.00555782]
[1740371852093,3.2078,2703.4,2703.1,0.73985]
[1740371852399,3.2078,2703.4,2703.0,0.00555782]
[1740371852599,3.2078,2703.4,2703.2,0.73982]
[1740371852802,0.73987,2703.1,2703.0,0.00555782]
[1740371852996,3.9476,2703.4,2703.0,0.74544782]
[1740371853197,3.2078,2703.4,2703.0,0.00555782]
[1740371853500,3.2078,2703.7,2703.0,0.00555782]
[1740371854199,0.73974,2703.6,2703.0,0.00555782]
[1740371854395,3.2078,2703.7,2703.4,0.73979]
[1740371854595,3.2078,2703.7,2703.3,0.7398]
[1740371854800,3.2078,2703.7,2703.0,0.00555782]
[1740371855099,3.2078,2703.7,2703.6,0.73973]
[1740371855802,3.2078,2703.7,2703.5,0.73974]
[1740371856103,3.2078,2703.7,2703.2,4.79324397]
[1740371856695,3.2078,2703.7,2703.5,0.73975]
[1740371857005,3.2078,2703.7,2703.0,0.99835782]
[1740371857006,3.2078,2703.7,2703.0,0.00555782]
[1740371857196,3.9476,2703.4,2703.0,0.74543782]
[1740371857707,3.2078,2703.4,2703.3,0.73982]
[1740371858006,3.2078,2703.8,2703.0,0.00555782]
[1740371858498,3.2078,2703.8,2703.7,0.73971]
[1740371858906,0.9453,2704.2,2704.0,0.73962]
[1740371859102,3.2078,2704.1,2704.0,0.73962]
[1740371859699,3.2078,2704.1,2703.5,7.93167812]
[1740371859899,3.2078,2704.1,2704.0,0.73963]
[1740371861705,3.2078,2704.1,2703.6,3.08]
[1740371861899,3.2078,2704.1,2703.2,3.2078]
[1740371862208,3.2078,2704.1,2703.5,3.2078]
[1740371862405,3.2078,2704.1,2703.3,3.079]
[1740371862706,3.2078,2704.1,2703.4,4.84933715]
[1740371863000,3.2078,2704.1,2703.5,0.73975]
[1740371863205,3.2078,2703.7,2703.3,0.7398]
[1740371863394,3.2078,2703.7,2703.2,3.075]
[1740371863798,3.2078,2703.7,2703.6,0.73973]
[1740371863999,3.2078,2703.7,2703.2,3.075]
[1740371864500,3.2078,2703.7,2703.5,0.73975]
[1740371864701,3.2078,2703.7,2703.6,0.73973]
[1740371865010,3.2078,2703.7,2703.2,6.2828]
[1740371865206,3.2078,2703.7,2703.2,3.075]
[1740371865404,3.2078,2703.7,2703.6,0.73973]
[1740371865707,3.2078,2703.8,2703.6,0.73972]
[1740371865906,3.2078,2703.8,2703.7,0.73971]
[1740371866101,3.2078,2703.8,2703.3,4.90876801]
[1740371866306,3.2078,2703.8,2703.6,0.73972]
[1740371866604,3.2078,2703.8,2703.7,0.73969]
[1740371866806,5.1917,2704.1,2703.3,2.954]
[1740371867106,0.73972,2703.7,2703.4,0.73979]
[1740371867305,3.2078,2704.0,2703.3,2.954]
[1740371867498,3.2078,2704.0,2703.3,1.84955]
[1740371867902,3.2078,2704.0,2703.4,1.84948]
[1740371868205,3.2078,2704.0,2703.5,40.8]
[1740371868604,3.2078,2704.0,2703.8,0.73967]
[1740371868913,3.2078,2704.0,2703.9,0.73965]
[1740371869109,3.2078,2704.0,2703.7,0.73971]
[1740371869408,3.94744,2704.0,2703.7,0.7397]
[1740371869599,0.73965,2703.9,2703.6,0.73972]
[1740371869800,3.2078,2704.0,2703.5,40.8]
[1740371870009,3.94743,2704.0,2703.7,0.7397]
[1740371870199,3.2078,2704.0,2703.9,0.73965]
[1740371870510,3.2078,2704.3,2704.2,0.73955]
[1740371870806,5.17,2704.6,2703.7,3.044]
[1740371871010,0.7396,2704.1,2703.7,3.044]
[1740371871203,3.2078,2704.0,2703.8,0.73966]
[1740371871399,3.2078,2704.0,2703.9,0.73965]
[1740371871997,3.2078,2704.0,2703.6,2.954]
[1740371872509,3.2078,2704.0,2703.9,0.73965]
[1740371872898,3.2078,2704.0,2703.8,0.73967]
[1740371873103,3.2078,2704.0,2703.8,0.73966]
[1740371873300,3.2078,2704.0,2703.6,2.954]
[1740371873504,3.2078,2704.0,2703.8,0.73967]
[1740371874006,3.2078,2704.0,2703.9,0.73965]
[1740371874209,3.2078,2704.0,2703.8,0.73967]
[1740371875010,3.2078,2704.4,2703.9,0.73964]
[1740371875209,0.73959,2704.2,2703.9,0.73964]
[1740371875405,0.73956,2704.3,2703.6,6.1618]
[1740371875612,3.2078,2704.4,2703.6,6.1618]
[1740371875809,3.2078,2704.1,2703.7,0.7397]
[1740371876002,3.81087,2704.6,2703.6,2.954]
[1740371876003,3.2078,2703.8,2703.6,2.954]
[1740371876311,3.2078,2704.1,2703.6,2.954]
[1740371876503,3.9474,2704.1,2703.7,0.73968]
[1740371876703,3.9474,2704.1,2703.6,2.954]
[1740371876904,3.2078,2704.1,2703.9,0.73963]
[1740371877105,3.2078,2704.1,2703.4,40.8]
[1740371877711,3.2078,2704.1,2704.0,0.73963]
[1740371878007,3.94741,2704.1,2703.4,40.8]
[1740371878214,3.2078,2704.1,2703.8,0.73966]
[1740371878412,3.2078,2704.1,2703.6,0.73973]
[1740371878713,0.73964,2704.0,2703.6,0.73973]
[1740371879014,3.94741,2704.1,2703.7,0.7397]
[1740371879310,3.2078,2704.1,2703.4,40.8]
[1740371879508,0.73971,2703.7,2703.3,3.011]
[1740371879717,3.2078,2703.8,2703.2,0.73983]
[1740371880005,3.2078,2703.8,2703.1,23.525]
[1740371880506,0.73971,2703.7,2703.2,4.81234229]
[1740371880711,3.2078,2703.5,2703.1,24.26487]
[1740371880904,3.2078,2703.5,2703.0,40.80555782]
[1740371881108,3.94757,2703.5,2703.1,0.73986]
[1740371881309,3.2078,2703.5,2703.1,0.73986]
[1740371881506,0.7398,2703.4,2703.0,40.80555782]
[1740371881805,3.2078,2703.5,2703.4,0.73979]
[1740371882005,3.2078,2703.5,2703.0,40.80555782]
[1740371882006,3.2078,2703.8,2703.7,0.73969]
[1740371882210,1.84836,2705.1,2703.4,6.66337349]
[1740371882211,3.2078,2704.1,2703.4,6.66337349]
[1740371882405,3.2078,2704.1,2703.4,4.81389349]
[1740371882605,3.2078,2704.1,2703.3,3.2078]
[1740371882606,0.73975,2703.6,2703.3,3.2078]
[1740371882809,0.73975,2703.6,2703.0,40.80555782]
[1740371882810,3.2078,2703.4,2703.1,2.954]
[1740371883010,3.2078,2703.4,2703.0,47.02035782]
[1740371883206,0.73987,2703.1,2703.0,0.00555782]
[1740371883517,3.94767,2703.1,2703.0,0.00555782]
[1740371883905,9.2078,2703.1,2701.4,6.2178]
[1740371884107,3.2078,2702.4,2701.7,0.27963809]
[1740371884404,2.81365,2703.3,2701.6,0.74027]
[1740371884405,3.94797,2702.1,2701.6,0.74027]
[1740371884609,3.2078,2702.0,2701.6,0.74027]
[1740371884804,3.2078,2702.0,2701.9,0.7402]
[1740371885011,0.00552219,2702.1,2701.5,41.07505776]
[1740371885209,3.21332219,2702.1,2701.5,0.00554713]
[1740371885414,3.2078,2701.8,2701.5,0.00554713]
[1740371885611,3.948,2702.0,2701.5,0.74583713]
[1740371885814,0.00552219,2702.1,2701.5,0.00554713]
[1740371886110,0.00552219,2702.1,2701.7,0.74025]
[1740371886416,0.00552219,2702.1,2701.8,0.74021]
[1740371886711,0.00552219,2702.1,2702.0,0.74017]
[1740371887305,0.9464,2702.6,2702.5,0.74004]
[1740371887507,0.9304,2702.9,2702.8,0.73995]
[1740371887701,3.2078,2703.0,2702.8,0.73995]
[1740371887702,3.2078,2703.0,2702.9,0.73993]
[1740371887907,3.2078,2703.0,2702.8,40.8]
[1740371888307,3.2078,2703.0,2702.9,0.73993]
[1740371888720,3.2078,2703.4,2703.3,0.73982]
[1740371889209,3.2078,2703.4,2703.1,0.00554713]
[1740371889416,3.2078,2703.4,2703.3,0.73982]
[1740371889611,3.2078,2703.4,2703.1,0.00554713]
[1740371889811,3.2078,2703.4,2703.1,0.74540713]
[1740371890007,0.73984,2703.2,2703.1,0.00554713]
[1740371890416,0.9254,2703.3,2703.1,0.00554713]
[1740371890915,3.2078,2703.4,2703.3,0.73982]
[1740371891110,3.2078,2703.4,2703.1,0.00554713]
[1740371891111,0.73983,2703.3,2703.1,0.00554713]
[1740371891310,3.9476,2703.4,2703.1,0.00554713]
[1740371891519,3.2078,2703.4,2703.1,0.74541713]
[1740371891815,3.2078,2703.4,2703.1,0.00554713]
[1740371892120,0.73984,2703.2,2703.1,0.00554713]
[1740371892814,3.2078,2703.4,2703.1,0.00554713]
[1740371893012,3.2078,2703.4,2703.3,0.73982]
[1740371893517,0.9304,2703.7,2703.2,4.90009558]
[1740371893714,0.9304,2703.7,2703.4,0.73977]
[1740371894119,4.1382,2703.7,2703.1,3.00054713]
[1740371894415,4.1382,2703.7,2703.1,43.80054713]
[1740371894617,4.1382,2703.7,2703.4,0.73977]
[1740371894814,4.1382,2703.7,2703.1,43.80054713]
[1740371895022,3.2078,2703.7,2703.6,0.73973]
[1740371895518,0.9254,2704.1,2703.4,3.2078]
[1740371895719,3.2078,2704.0,2703.4,3.2078]
[1740371895917,3.2078,2704.0,2703.2,0.9475]
[1740371896419,3.918,2704.4,2703.4,1.84948]
[1740371896420,3.2078,2704.3,2703.4,1.84948]
[1740371896721,0.928,2704.4,2703.7,3.2078]
[1740371897022,3.2078,2704.2,2703.8,2.986]
[1740371897217,0.73963,2704.0,2703.7,3.72369]
[1740371897524,3.2078,2704.2,2703.3,7.96868694]
[1740371897724,0.73974,2703.6,2703.4,2.983]
[1740371898018,3.2078,2703.6,2703.1,0.00554713]
[1740371898217,0.73984,2703.2,2703.1,0.00554713]
[1740371898421,0.73983,2703.3,2703.1,0.00554713]
[1740371898615,0.73984,2703.2,2703.1,0.00554713]
[1740371898822,3.2078,2703.3,2703.1,0.00554713]
[1740371899121,0.73984,2703.2,2703.1,0.00554713]
[1740371899620,1.84969,2703.1,2701.5,4.1886]
[1740371899820,3.2078,2702.4,2701.5,2.982]
[1740371900025,3.2078,2702.1,2701.4,1.0099]
[1740371900223,0.74029,2701.6,2701.3,43.782]
[1740371900415,3.2078,2701.5,2701.3,40.8]
[1740371900622,3.2078,2701.5,2700.9,0.74046]
[1740371900823,3.94821,2701.2,2701.1,0.00554713]
[1740371901019,3.2078,2701.2,2701.1,0.00554713]
[1740371901625,3.2078,2701.2,2701.1,0.74596713]
[1740371901927,3.2078,2701.5,2701.1,0.00554713]
[1740371902626,3.2078,2701.5,2701.4,0.74034]
[1740371902828,0.00554713,2701.7,2701.2,0.74036]
[1740371903024,0.00554713,2701.7,2701.1,2.97954713]
[1740371903829,0.00554713,2701.7,2701.6,0.74028]
[1740371904024,0.00554713,2701.7,2701.3,0.74035]
[1740371904225,0.74035,2701.4,2701.1,0.00554713]
[1740371904523,3.2078,2701.3,2701.1,0.74595713]
[1740371904729,3.2078,2701.3,2701.2,0.74039]
[1740371904926,3.2078,2701.3,2701.1,0.00554713]
[1740371905530,0.74054,2700.7,2700.2,3.71465]
[1740371905723,0.74056,2700.6,2700.2,2.974]
[1740371905927,3.2078,2700.7,2700.1,3.2078]
[1740371906130,3.2078,2701.0,2700.1,6.1808]
[1740371906423,0.9309,2701.2,2701.0,0.74043]
[1740371906628,0.9309,2701.2,2700.9,0.74046]
[1740371907135,3.2078,2701.3,2701.2,0.74039]
[1740371907625,3.2078,2701.8,2701.1,2.972]
[1740371907823,0.74581713,2701.7,2701.3,0.74036]
[1740371908024,3.2078,2701.5,2701.1,3.71241]
[1740371908222,3.2078,2701.5,2701.1,3.71239]
[1740371908429,3.2078,2701.5,2701.2,0.74037]
[1740371908625,3.2078,2701.5,2701.0,40.8]
[1740371908826,3.94813,2701.5,2701.0,41.54043]
[1740371909018,3.94821,2701.2,2701.0,40.8]
[1740371909219,3.2078,2701.2,2700.8,0.00554713]
[1740371909426,3.2078,2700.9,2699.5,3.2078]
[1740371909626,3.2078,2700.3,2699.5,5.33374315]
[1740371909822,3.2078,2700.3,2699.6,4.88982473]
[1740371910022,3.2078,2700.3,2699.5,3.2078]
[1740371910221,3.2078,2700.0,2699.6,0.74081]
[1740371910424,3.2078,2700.3,2699.6,0.74083]
[1740371910625,3.2078,2700.6,2700.5,0.74058]
[1740371910822,3.2078,2700.6,2699.9,2.973]
[1740371911132,3.2078,2700.6,2700.5,0.74058]
[1740371911329,0.99544713,2700.8,2700.7,0.74053]
[1740371911330,0.00554713,2700.8,2700.7,0.74053]
[1740371911530,3.2078,2701.4,2700.7,3.2078]
[1740371911726,0.74038,2701.3,2700.9,0.74045]
[1740371911934,0.7404,2701.2,2700.8,0.74049]
[1740371912229,2.976,2701.6,2700.9,40.8]
[1740371912230,3.2078,2701.3,2700.9,40.8]
[1740371912429,3.2078,2701.0,2700.5,2.974]
[1740371912731,0.9651,2700.9,2700.8,0.00554713]
[1740371913527,1.70557,2700.9,2700.8,0.00554713]
[1740371913730,7.70557,2700.9,2700.8,0.00554713]
[1740371914032,8.81631,2700.9,2699.6,2.0366]
[1740371914334,8.81631,2700.9,2699.8,0.74076]
[1740371914335,3.94846,2700.3,2699.8,0.74076]
[1740371914735,3.2078,2700.3,2699.9,0.74074]
[1740371914935,3.2078,2700.3,2699.6,2.0366]
[1740371915129,3.2078,2700.3,2699.8,0.00554713]
[1740371915331,0.74075,2699.9,2699.8,0.00554713]
[1740371915739,1.69965,2699.9,2699.8,0.00554713]
[1740371915933,0.9589,2699.9,2699.8,0.00554713]
[1740371916831,0.9589,2699.9,2699.8,0.74632713]
[1740371917031,3.2078,2700.0,2699.8,0.00554713]
[1740371917835,3.2078,2700.0,2699.8,0.74630713]
[1740371918032,3.2078,2700.0,2699.8,0.00554713]
[1740371918232,3.2078,2700.0,2699.8,0.74630713]
[1740371918436,3.2078,2700.0,2699.8,0.00554713]
[1740371919933,0.9589,2700.7,2699.8,0.00554713]
[1740371919934,3.2078,2700.3,2699.8,2.96954713]
[1740371920138,3.2078,2700.3,2700.2,0.74067]
[1740371920439,3.2078,2701.1,2700.2,3.2078]
[1740371920737,3.2078,2701.1,2700.3,3.9133]
[1740371921038,3.2078,2701.1,2700.8,0.74048]
[1740371921430,3.94825,2701.1,2700.3,8.74391971]
[1740371921636,3.94823,2701.1,2700.3,8.74391971]
[1740371921838,3.2078,2700.8,2700.3,8.74391971]
[1740371922040,0.00554713,2701.4,2700.3,3.9133]
[1740371922041,3.2078,2701.1,2700.3,3.9133]
[1740371922235,0.9585,2701.0,2700.3,3.9133]
[1740371922537,3.2078,2701.1,2700.4,40.8]
[1740371922730,0.00554713,2701.4,2700.4,40.8]
[1740371922731,3.2078,2700.8,2700.5,0.74057]
[1740371922936,3.2078,2700.8,2700.7,0.74053]
[1740371923131,3.2078,2701.1,2700.4,40.8]
[1740371923336,0.74047,2701.0,2700.5,0.74058]
[1740371923639,3.94823,2701.1,2700.6,0.74055]
[1740371923841,3.94823,2701.1,2700.6,0.74054]
[1740371924139,3.2078,2701.1,2700.7,0.74053]
[1740371924336,3.2078,2701.1,2700.3,3.9023]
[1740371924541,3.2078,2701.1,2701.0,0.74045]
[1740371924841,0.00554713,2701.4,2700.6,1.85139]
[1740371925047,0.00554713,2701.4,2701.1,0.7404]
[1740371925435,0.00554713,2701.4,2700.8,2.955]
[1740371925634,3.21334713,2701.4,2700.8,2.955]
[1740371925940,3.21334713,2701.4,2700.8,3.69548]
[1740371926133,3.21334713,2701.4,2700.8,2.955]
[1740371926329,3.2078,2701.1,2700.5,3.8829]
[1740371926836,3.2078,2701.1,2701.0,0.74045]
[1740371927231,0.00554713,2701.4,2701.3,0.74036]
[1740371927936,0.00554713,2701.4,2701.2,3.2078]
[1740371928341,0.00554713,2701.4,2701.0,0.9368]
[1740371928542,0.00554713,2701.4,2700.5,0.9339]
[1740371928736,3.21334713,2701.4,2700.5,0.9339]
[1740371928938,3.2078,2701.1,2700.4,4.1446]
[1740371929144,3.2078,2701.2,2700.2,2.95]
[1740371929336,3.2078,2700.9,2700.7,0.74052]
[1740371929537,3.2078,2701.3,2700.2,2.95]
[1740371929741,0.74047,2700.9,2700.6,0.74055]
[1740371929940,3.94826,2701.0,2700.6,0.74055]
[1740371930243,0.74046,2701.0,2700.6,0.74054]
[1740371930437,0.9821,2701.2,2700.2,2.95]
[1740371930640,0.9821,2701.2,2700.4,3.2078]
[1740371930835,0.9821,2701.2,2700.5,1.85147]
[1740371931039,3.2078,2701.1,2700.2,2.95]
[1740371931239,3.94832,2700.8,2700.0,3.2078]
[1740371931444,3.2078,2701.1,2700.6,0.74054]
[1740371931641,0.74048,2700.9,2700.5,0.74057]
[1740371931843,3.2078,2701.1,2700.6,2.945]
[1740371932046,4.93031,2701.2,2700.8,0.74049]
[1740371932343,3.2078,2700.9,2700.6,3.68555]
[1740371932544,0.74051,2700.8,2700.4,0.74059]
[1740371932937,3.2078,2700.7,2700.2,4.90090151]
[1740371933241,3.94838,2700.6,2700.2,0.74066]
[1740371933544,3.2078,2700.6,2700.4,0.7406]
[1740371933846,3.94836,2700.6,2700.0,5.903]
[1740371934142,3.2078,2700.3,2699.8,0.00554713]
[1740371934536,0.74071,2700.1,2699.8,0.00554713]
[1740371934748,3.2078,2700.0,2699.8,0.00554713]
[1740371935042,3.94854,2700.0,2699.8,0.00554713]
[1740371935441,3.94852,2700.0,2699.8,0.00554713]
[1740371935645,3.2078,2700.3,2699.8,0.00554713]
[1740371935840,3.94846,2700.3,2699.8,0.00554713]
[1740371936047,3.2078,2700.3,2699.8,0.74630713]
[1740371936342,3.2078,2700.3,2699.8,0.00554713]
[1740371936542,3.94845,2700.3,2699.9,0.74075]
[1740371936941,3.2078,2700.3,2700.0,0.7407]
[1740371937142,3.2078,2700.3,2700.1,0.74069]
[1740371937436,3.2078,2700.3,2699.8,0.00554713]
[1740371937640,3.2078,2700.6,2699.9,2.945]
[1740371937848,4.1812,2701.1,2700.4,3.2078]
[1740371938150,3.2078,2701.1,2700.9,0.74046]
[1740371938446,3.2078,2701.1,2700.4,6.1528]
[1740371938947,3.2078,2701.1,2700.7,0.74052]
[1740371939137,3.2078,2701.1,2700.4,6.1528]
[1740371939544,0.74054,2700.7,2700.1,2.945]
[1740371939739,0.74058,2700.6,2700.1,2.945]
[1740371939942,3.2078,2700.8,2700.2,0.74065]
[1740371940143,0.74057,2700.6,2700.1,2.945]
[1740371940345,3.2078,2700.8,2700.1,2.945]
[1740371940547,3.2078,2700.8,2700.0,4.1654]
[1740371940548,3.2078,2700.8,2700.2,0.74066]
[1740371940855,3.2078,2700.8,2700.5,0.74056]
[1740371941345,3.2078,2700.8,2700.0,7.1104]
[1740371941650,3.2078,2700.8,2700.7,0.74053]
[1740371942045,4.14,2701.1,2700.2,1.85167]
[1740371942344,1.66988,2701.3,2700.9,0.74046]
[1740371942551,0.9295,2701.3,2700.7,3.2078]
[1740371942740,1.66988,2701.3,2700.7,3.2078]
[1740371942943,0.7404,2701.2,2700.7,3.2078]
[1740371943147,0.7404,2701.2,2700.8,0.74049]
[1740371943444,3.2078,2701.1,2700.5,5.899]
[1740371943751,3.94823,2701.1,2700.7,0.7405]
[1740371943949,3.2078,2701.1,2700.5,2.954]
[1740371944254,0.74053,2700.8,2700.5,2.954]
[1740371944445,3.2078,2700.9,2700.7,0.74053]
[1740371944645,3.2078,2700.9,2700.6,0.74053]
[1740371944945,3.2078,2700.9,2700.5,2.954]
[1740371945138,3.2078,2700.9,2700.3,0.74063]
[1740371945349,3.2078,2700.9,2700.2,2.945]
[1740371945654,3.2078,2700.9,2700.8,0.7405]
[1740371945951,3.2078,2701.2,2701.1,0.74042]
[1740371946444,0.00554713,2701.4,2701.3,0.74036]
[1740371948447,0.00554713,2701.4,2700.9,7.1756]
[1740371948746,3.2078,2701.3,2700.8,2.954]
[1740371948949,0.74046,2701.0,2700.8,2.954]
[1740371949149,1.76491,2701.2,2700.8,3.69448]
[1740371949346,1.0245,2701.2,2700.8,2.954]
[1740371949552,3.2078,2701.3,2701.0,0.74043]
[1740371949750,3.2078,2701.3,2700.8,2.954]
[1740371950152,3.94826,2701.0,2700.8,2.954]
[1740371950654,3.2078,2701.3,2700.8,2.954]
[1740371950855,3.2078,2701.3,2701.2,0.74039]
[1740371951356,0.00554713,2701.4,2701.3,0.74036]
[1740371952347,0.00554713,2701.4,2701.0,2.945]
[1740371952550,0.00554713,2701.4,2701.1,0.74042]
[1740371952751,0.00554713,2701.4,2701.2,0.74038]
[1740371953052,0.00554713,2701.4,2701.3,0.74036]
[1740371953258,0.00554713,2701.4,2701.2,0.74038]
[1740371953561,0.00554713,2701.4,2701.3,0.74036]
[1740371953959,0.00554713,2701.4,2700.9,3.9543]
[1740371954352,0.00554713,2701.4,2701.3,0.74036]
[1740371954951,0.00554713,2701.4,2700.9,3.9543]
[1740371955152,0.00554713,2701.4,2701.2,0.74038]
[1740371955452,0.00554713,2701.4,2701.3,0.74036]
[1740371957254,2.0841,2702.2,2701.3,4.77591378]
[1740371957452,3.2078,2702.5,2701.6,3.2078]
[1740371957653,1.0367,2703.4,2701.9,5.05826]
[1740371957654,3.2078,2702.9,2701.9,5.05826]
[1740371957848,3.2078,2702.9,2702.0,3.9087]
[1740371958056,3.94775,2702.9,2702.6,0.74]
[1740371958257,0.73997,2702.8,2702.5,0.74003]
[1740371958454,3.2078,2702.6,2702.5,0.00554713]
[1740371958661,3.94781,2702.6,2702.5,0.00554713]
[1740371959354,3.94781,2702.6,2701.6,3.2078]
[1740371959355,9.2078,2702.6,2701.6,3.2078]
[1740371959555,3.2078,2701.9,2701.6,0.74028]
[1740371959856,0.74023,2701.8,2701.4,1.74332]
[1740371960052,0.74025,2701.8,2701.1,0.27872249]
[1740371960248,0.74024,2701.8,2701.0,4.2145]
[1740371960453,0.74018,2702.0,2701.6,0.74027]
[1740371960653,6.1948,2702.2,2701.8,0.74022]
[1740371960853,6.1948,2702.2,2701.9,0.74018]
[1740371961054,6.1948,2702.2,2701.6,0.74027]
[1740371961255,0.74017,2702.1,2701.3,3.2078]
[1740371961448,6.1948,2702.2,2701.3,3.2078]
[1740371961654,0.74017,2702.1,2701.3,3.2078]
[1740371961854,3.2078,2701.9,2701.7,0.74024]
[1740371962055,3.2078,2701.9,2701.3,3.2078]
[1740371962459,3.2078,2701.9,2701.7,0.74024]
[1740371962656,3.2078,2701.9,2701.6,0.74027]
[1740371962857,3.2078,2701.9,2701.3,3.2078]
[1740371963058,3.2078,2702.2,2702.1,0.74015]
[1740371963458,3.2078,2702.2,2701.6,8.00248]
[1740371963459,3.2078,2702.5,2701.7,0.9609]
[1740371963760,3.2078,2702.5,2702.2,0.7401]
[1740371963954,3.2078,2702.5,2701.7,1.923]
[1740371964164,3.2078,2702.2,2701.9,0.74018]
[1740371964355,3.2078,2702.2,2701.7,1.923]
[1740371964562,3.2078,2701.9,2701.3,2.944]
[1740371964761,3.2078,2701.6,2701.2,0.00554713]
[1740371965262,1.0379,2701.8,2701.2,0.00554713]
[1740371965263,3.2078,2701.3,2701.2,0.74593713]
[1740371965459,8.1861,2701.8,2701.2,0.00554713]
[1740371965858,5.24764713,2701.8,2701.2,0.00554713]
[1740371966165,5.24764713,2701.8,2701.6,0.74027]
[1740371966362,5.24764713,2701.8,2701.6,0.74026]
[1740371966656,0.74027,2701.7,2701.4,0.74032]
[1740371966868,5.98788713,2701.8,2701.5,0.7403]
[1740371967160,5.98788713,2701.8,2701.4,0.74032]
[1740371967463,4.25124713,2701.8,2701.7,0.74025]
[1740371967657,3.21334713,2701.8,2701.7,0.74025]
[1740371968263,3.21334713,2701.8,2701.2,2.94954713]
[1740371968557,3.21334713,2701.8,2701.5,0.7403]
[1740371968955,3.21334713,2701.8,2701.2,2.94954713]
[1740371969151,3.21334713,2701.8,2701.7,0.74025]
[1740371970461,0.00554713,2701.8,2701.7,0.74025]
[1740371970662,5.1506,2702.4,2702.3,0.74009]
[1740371970869,3.2078,2702.4,2702.3,0.74009]
[1740371971064,3.2078,2702.4,2701.8,0.9691]
[1740371971265,0.74017,2702.1,2701.8,1.70932]
[1740371971560,6.1508,2702.4,2701.5,3.9274]
[1740371971768,3.2078,2702.1,2701.5,2.943]
[1740371971963,3.2078,2702.1,2702.0,0.74017]
[1740371972265,3.2078,2702.1,2701.5,4.79377]
[1740371972266,3.2078,2702.1,2701.9,0.74018]
[1740371972461,3.2078,2702.1,2702.0,0.74017]
[1740371975662,0.00554713,2702.2,2702.1,0.74015]
[1740371976271,0.9717,2702.9,2702.8,0.73995]
[1740371976465,1.0542,2703.0,2702.1,7.82880332]
[1740371976466,1.0542,2703.0,2702.9,0.73993]
[1740371976770,3.2078,2703.1,2702.4,1.85017]
[1740371976966,3.94767,2703.1,2702.2,4.0218]
[1740371977167,3.94767,2703.1,2702.8,0.73993]
[1740371977370,0.00554713,2702.9,2702.8,0.73995]
[1740371979067,0.00554713,2702.9,2702.7,0.73998]
[1740371979374,0.00554713,2702.9,2702.8,0.73995]
[1740371979567,0.00554713,2702.9,2702.4,0.00554713]
[1740371979867,3.2078,2702.8,2702.4,0.00554713]
[1740371980073,0.74003,2702.6,2702.4,0.00554713]
[1740371980273,0.74002,2702.6,2702.4,0.00554713]
[1740371980466,3.94784,2702.5,2702.4,0.00554713]
[1740371980665,3.94784,2702.5,2701.8,0.7572]